Cogmind - Beta 14 @@@ ROGUE MODE // 2024.09.07 @ 16:06:39 Player: s0lid Result: Destroyed by Armor Guard with Advanced Plasma Rifle Performance ------------- Evolutions (7) 3500 Regions Visited (18) 3600 Robots Destroyed (139) 695 Value Destroyed (4431) 4431 Prototype IDs (29) 580 Alien Tech Used (0) 0 Bonus (1787) 1787 TOTAL SCORE: 14593 Bonus ------- High Alert Combat Kills 4 Follower Combat Kills 1101 Awakened Behemoth Slayer 1000 Friendly Fire -318 Cogmind --------- Core Integrity 0/1300 Matter 300/300 Energy 100/100 System Corruption 9% Temperature Cool (14) Movement Flying (35) Location -3/Armory Parts ------- > --- POWER (2) -------- (None) > --- PROPULSION (7) --- Cesium-ion Thruster > --- UTILITY (8) ------ Advanced Melee Analysis Suite Advanced Melee Analysis Suite > --- WEAPON (4) ------- (None) > --- INVENTORY (5) ---- Micro Nuclear Core Light Antimatter Reactor Improved Trap Scanner Advanced Phase Shifter Enhanced Quantum Rifle Peak State ------------ > --- POWER ------------ Particle Reactor Compact Particle Reactor > --- PROPULSION ------- Myomer Leg Myomer Leg Gyrokinetic Inverter Cooled Gravmag System Combat Antigrav System Antigrav Array > --- UTILITY ---------- Advanced Cooling System Medium Storage Unit Advanced Gravity Neutralizer Advanced Target Analyzer Advanced Transmission Jammer Advanced Phase Shifter Advanced Hacking Suite Advanced System Shield > --- WEAPON ----------- Precision Phase Gun Precision Phase Gun Railgun Railgun > --- INVENTORY -------- Light Antimatter Reactor Biometal Leg Advanced Energy Well Improved Matter Compressor Improved Trap Scanner Improved Kinecellerator Advanced ECM Suite CPS Tube CR-A16's Behemoth Slayer [Rating: 155] Favorites ----------- Power Light Nuclear Core Engine Ion Engine Power Core Light Nuclear Core Reactor Light Antimatter Reactor Propulsion Improved VTOL Module Treads Advanced Treads Leg Carbon-fiber Leg Wheel Wheel Hover Unit Antigrav Array Flight Unit Improved VTOL Module Utility Seismic Detector Device Seismic Detector Storage Cargo Storage Unit Processor Advanced Signal Interpreter Hackware System Shield Protection Light Armor Plating Weapon Enhanced Autogun Energy Gun Precision Phase Gun Energy Cannon Ion Cannon Ballistic Gun Enhanced Autogun Ballistic Cannon Advanced Assault Cannon Launcher Rocket Launcher Special Weapon Plasma Cutter Slashing Weapon Makeshift Sword Piercing Weapon Makeshift Spear Special Melee Weapon Improved Datajack Build | -11 -10 -10 -10 -9 -8 -7 -7 -7 -7 -6 -6 -6 -6 -5 -4 -4 -3 -3 ------- Run | Yrd Mat Min Exi Min Mat Fac Low Low Zio Pro Fac Low Low Fac Fac Ext Res Arm Slots Evolved 14 | . . . . . 4 2 . . . . 2 . . 2 2 . 2 . Power 1 | . . . . . . 1 . . . . . . . . . . . . Propulsion 5 | . . . . . 1 1 . . . . 1 . . 1 1 . . . Utility 6 | . . . . . 3 . . . . . 1 . . 1 1 . . . Weapon 2 | . . . . . . . . . . . . . . . . . 2 . Parts Attached 394 | 8 19 9 2 4 74 38 . 7 6 . 23 12 11 34 32 43 20 52 Power 59 | 1 2 2 . . 9 10 . 2 4 . 2 3 1 7 2 6 1 7 Engine 20 | 1 2 1 . . 7 2 . 2 3 . 2 . . . . . . . Core 31 | . . 1 . . 2 8 . . 1 . . 3 1 7 2 4 . 2 Reactor 8 | . . . . . . . . . . . . . . . . 2 1 5 Propulsion 119 | 2 6 1 . 2 20 10 . . 1 . 4 3 3 14 12 14 11 16 Treads 9 | 1 . . . . 4 . . . . . . . 2 . . 1 1 . Leg 20 | . . . . . 7 . . . . . . . . 4 . 6 3 . Wheel 24 | 1 6 1 . 2 6 3 . . . . 2 . . . . . 3 . Hover 21 | . . . . . 1 . . . . . . 1 . 1 3 5 4 6 Flight 45 | . . . . . 2 7 . . 1 . 2 2 1 9 9 2 . 10 Utility 117 | 3 2 . 1 1 17 9 . 5 1 . 8 2 5 9 17 15 4 18 Device 72 | 2 . . . . 9 4 . 4 1 . 4 2 1 7 10 11 3 14 Storage 12 | 1 1 . 1 . 3 . . . . . 1 . 1 1 2 1 . . Processor 16 | . 1 . . . 3 2 . . . . . . 2 1 3 . . 4 Hackware 9 | . . . . . . 1 . 1 . . 3 . . . 2 1 1 . Protection 8 | . . . . 1 2 2 . . . . . . 1 . . 2 . . Artifact . | . . . . . . . . . . . . . . . . . . . Weapon 99 | 2 9 6 1 1 28 9 . . . . 9 4 2 4 1 8 4 11 Energy Gun 25 | . 3 . . . 9 2 . . . . 2 . . . 1 2 2 4 Energy Cannon 4 | . . . . . 2 . . . . . . 1 . . . . . 1 Ballistic Gun 26 | 2 3 2 1 1 3 5 . . . . 2 2 1 1 . . 2 1 Ballistic Cannon 10 | . . . . . 3 1 . . . . . . . 2 . 4 . . Launcher 11 | . 3 4 . . 2 . . . . . . . . . . . . 2 Special Weapon 4 | . . . . . 1 . . . . . 1 . . . . 1 . 1 Impact Weapon . | . . . . . . . . . . . . . . . . . . . Slashing Weapon 11 | . . . . . 5 1 . . . . 2 . 1 . . 1 . 1 Piercing Weapon 7 | . . . . . 3 . . . . . 1 1 . 1 . . . 1 Special Melee Weapon 1 | . . . . . . . . . . . 1 . . . . . . . Unidentified Prototypes 26 | . . . . . 10 1 . 1 . . 1 . . 2 4 3 2 2 Corrupted Parts 1 | . . . . . . . . . . . . 1 . . . . . . System Corruption 2 | . . . . . . . . . . . . 2 . . . . . . Parts Lost 141 | . 4 5 . . 24 15 . . . . 21 8 1 11 5 18 . 29 Power 26 | . . 1 . . 5 5 . . . . 4 1 . . 1 5 . 4 Propulsion 53 | . 3 2 . . 8 6 . . . . 7 2 1 6 1 6 . 11 Utility 35 | . . . . . 6 2 . . . . 6 3 . 3 2 5 . 8 Weapon 27 | . 1 2 . . 5 2 . . . . 4 2 . 2 1 2 . 6 Highest Loss Streak 20 | . 2 3 . . 6 5 . . . . 10 10 1 11 5 6 . 20 To Critical Strikes 2 | . . . . . . 1 . . . . . . . 1 . . . . Average Slot Usage (%) 83 | . 100 93 82 98 84 76 100 95 98 100 85 26 52 78 92 89 90 77 Engine 3 | . 14 2 . . 7 1 7 12 14 15 9 . . . . . . . Core 5 | . . 11 14 14 1 10 7 2 . . . . . 7 10 6 . . Treads 1 | . . . . . 2 . . . . . . . 5 1 . 1 1 . Leg 3 | . . . . . 10 . . . . . . . . 5 . 5 5 1 Wheel 7 | . 28 24 14 26 10 9 . . . . . . . . . . 8 . Hover 2 | . . . . . . . . . . . . 2 1 . 2 5 8 18 Flight 9 | . . . . . . 8 30 30 30 30 28 4 10 20 28 19 . 3 Device 12 | . 13 . . . 14 4 15 15 21 23 18 7 13 14 18 16 14 14 Storage 6 | . 14 14 14 14 11 5 . . . . . . . . 5 5 4 3 Processor 8 | . . 14 14 . 6 13 15 11 7 7 6 . . 9 12 12 9 4 Hackware 3 | . . . . . . 5 7 6 7 7 6 7 6 2 4 2 8 6 Protection 1 | . . . . 13 1 1 . . . . . . 3 . . 1 . . Energy Gun 3 | . 11 11 . . 6 . . . . . . . . . . 2 6 6 Ballistic Gun 6 | . 9 8 11 14 2 11 15 15 15 15 8 1 3 4 4 . 7 6 Launcher 2 | . 7 5 14 14 . . . . . . . . . . . . . . Piercing Weapon 1 | . . . . . 2 . . . . . . . . 2 5 2 . . Peak Build Rating 155 | 9 11 12 12 15 43 51 46 61 50 47 62 27 38 91 113 133 152 155 Average Rating 52 | 6 9 10 11 13 31 43 46 45 46 47 50 13 24 61 100 104 140 117 On Entrance 44 | . 8 9 10 12 15 33 46 46 44 47 47 26 16 38 91 109 92 150 Naked Turns 15 | . . . . . . . . . . . . . . . . . . 15 Heaviest Build 174 | 13 54 50 50 54 174 173 20 24 20 20 25 20 9 48 49 61 67 75 Greatest Support 95 | 10 26 26 16 28 56 56 20 20 20 20 26 9 12 54 63 90 78 95 Greatest Overweight (x) 51 | 3 4 4 3 3 51 49 . 1 . . 1 6 1 1 1 7 3 7 Average Overweight (x) . | 1 1 1 3 2 5 2 . . . . . . . . . . . . Largest Inventory Capacity 30 | 8 20 20 20 20 30 30 5 5 5 5 5 5 5 15 15 10 10 10 Average Capacity 16 | 7 17 20 20 20 29 23 5 5 5 5 5 5 5 6 10 10 10 8 Most Carried 30 | 6 20 20 20 20 30 30 5 5 5 5 5 5 5 12 15 10 10 10 Average Carried 15 | 2 13 19 19 19 27 23 4 4 5 5 4 4 4 5 10 9 9 8 Final Capacity 30 | 8 20 20 20 20 30 5 5 5 5 5 5 5 5 15 10 10 10 5 Final Carried 30 | 6 20 18 19 20 30 5 5 5 5 5 4 5 5 12 10 10 10 5 Class Distribution -------------------- 28% | Hauler-Mutant 25% | Mutant 10% | Scavenger-Mutant 9% | Sprinter 6% | Derelict-Sprinter 5% | Scavenger-Gunner 3% | Ninja 3% | Derelict-Mutant Dominant Class ---------------- Mutant | -10/Materials Mutant | -10/Mines Mutant | -10/Exiles Mutant | -9/Mines Hauler-Mutant | -8/Materials Hauler-Mutant | -7/Factory Sprinter | -7/Lower Caves Sprinter | -7/Lower Caves Derelict-Sprinter | -7/Zion Derelict-Sprinter | -6/Proximity Caves Derelict-Sprinter | -6/Factory Mutant | -6/Lower Caves Scavenger-Mutant | -6/Lower Caves Derelict-Mutant | -5/Factory Ninja | -4/Factory Scavenger-Mutant | -4/Extension Scavenger-Gunner | -3/Research Scavenger-Gunner | -3/Armory Resources | -11 -10 -10 -10 -9 -8 -7 -7 -7 -7 -6 -6 -6 -6 -5 -4 -4 -3 -3 ----------- Run | Yrd Mat Min Exi Min Mat Fac Low Low Zio Pro Fac Low Low Fac Fac Ext Res Arm Matter Collected 6496 | 277 296 223 553 46 1084 802 63 70 76 . 51 172 110 293 283 927 210 960 Remotely . | . . . . . . . . . . . . . . . . . . . Salvage Created 4910 | 108 344 290 24 . 1486 750 . . . . 156 42 . 399 283 415 233 380 Parts 254 | 7 28 14 . . 57 46 . . . . 14 6 . 19 13 7 9 34 Haulers Intercepted 13 | . 2 . . . 5 . . . . . . . . 1 2 2 1 . Recyclers Shooed 3 | 1 1 . . . . . . . . . . . . 1 . . . . Parts Field Recycled . | . . . . . . . . . . . . . . . . . . . Retrieved Matter . | . . . . . . . . . . . . . . . . . . . Parts Self-Destructed 10 | . . . . . . . 4 . . . . 3 3 . . . . . Prevented 4 | . . . . . . . . . . . . 2 2 . . . . . Kills | -11 -10 -10 -10 -9 -8 -7 -7 -7 -7 -6 -6 -6 -6 -5 -4 -4 -3 -3 ------- Run | Yrd Mat Min Exi Min Mat Fac Low Low Zio Pro Fac Low Low Fac Fac Ext Res Arm Combat Hostiles Destroyed 94 | . 11 9 . . 27 20 . . . . 1 2 . 7 2 4 2 9 Melee 13 | . . . . . 4 1 . . . . . . . 6 2 . . . Guns 47 | . 10 5 . . 10 12 . . . . . 1 . 1 . . 2 6 Cannons 20 | . . . . . 8 7 . . . . . 1 . . . 4 . . AOE 13 | . 1 4 . . 5 . . . . . . . . . . . . 3 Classes Destroyed 17 | 2 5 . . . 5 2 . . . . 2 . . . . . . 1 Worker 16 | . 1 . . . 7 2 . . . . . . . 6 . . . . Tunneler 3 | 2 . . . . . . . . . . 1 . . . . . . . Hauler 13 | . 2 . . . 5 . . . . . . . . 1 2 2 1 . Recycler 3 | 1 . 1 . . 1 . . . . . . . . . . . . . Operator 3 | . . . . . . . . . . . 3 . . . . . . . Watcher 6 | . 2 . . . 3 . . . . . . . . . . . . 1 Swarmer 31 | . 6 3 . . 3 7 . . . . . 2 . 7 . . . 3 Cutter 4 | . . . . . . . . . . . . . . . . . . 4 Grunt 36 | . 5 6 . . 15 6 . . . . . . . . . 4 . . Brawler 2 | . . . . . 1 1 . . . . . . . . . . . . Duelist 1 | . . . . . . 1 . . . . . . . . . . . . Sentry 5 | . . . . . 3 2 . . . . . . . . . . . . Specialist 2 | . . . . . 2 . . . . . . . . . . . . . Hunter 5 | . . . . . 3 . . . . . . . . . . . 2 . Programmer 7 | . . . . . . 3 . . . . . . . . 2 . . 2 Heavy 1 | . . . . . 1 . . . . . . . . . . . . . Behemoth 1 | . . . . . . . . . . . 1 . . . . . . . Best Kill Streak 6 | 3 5 5 . . 6 5 . . . . 1 1 . 5 2 2 2 4 Combat Bots Only 6 | . 3 4 . . 6 4 . . . . 1 1 . 3 2 1 2 4 Max Kills in Single Turn 3 | 1 2 3 . . 2 2 . . . . 1 1 . 1 1 1 1 3 Gunslinging 1 | . . . . . . 1 . . . . . . . . . . . . Exploded 3 | . 1 1 . . 1 . . . . . . . . . . . . 3 Melee 1 | . . . . . 1 1 . . . . . . . 1 1 . . . Uniques/NPCs Destroyed . | . . . . . . . . . . . . . . . . . . . Combat | -11 -10 -10 -10 -9 -8 -7 -7 -7 -7 -6 -6 -6 -6 -5 -4 -4 -3 -3 -------- Run | Yrd Mat Min Exi Min Mat Fac Low Low Zio Pro Fac Low Low Fac Fac Ext Res Arm Hostile Shots Fired 1572 | . 51 41 . . 240 258 13 . . 34 140 59 19 112 124 195 45 241 Missed 573 | . 7 14 . . 57 78 7 . . 27 70 21 14 32 72 67 19 88 Damage Taken 17966 | . 604 399 28 . 3272 2857 77 . . 72 1479 606 47 1174 1089 2284 389 3589 Core 4416 | . 128 100 10 . 391 644 10 . . 12 437 288 5 361 345 370 72 1243 Absorbed by Shields 338 | . . . . . 58 . . . . . . . . 25 76 179 . . Ignored by Resistances 443 | . . . . . . . . . . . . . . . . 443 . . Regen/Repaired (Parts) 84 | . . . . . . . . . . . . . . 84 . . . . Core Remaining (%) 35 | 100 . . . 4 28 . . . . 4 . . 14 63 . 37 . . Volleys Fired 392 | 8 41 20 7 1 136 69 . . 2 . 4 8 . 7 4 24 7 54 Largest 4 | 2 2 2 1 1 2 2 . . 2 . 2 1 . 1 1 2 4 4 Hottest 258 | 40 98 73 33 20 128 50 . . 50 . 75 75 . 33 88 146 258 258 Shots Fired 585 | 16 71 36 7 1 175 106 . . 4 . 5 8 . 7 4 36 22 87 Gun 428 | 16 54 26 . 1 105 78 . . 4 . 5 6 . 7 4 14 22 86 Cannon 105 | . . . . . 54 28 . . . . . 2 . . . 21 . . Launcher 51 | . 17 10 7 . 16 . . . . . . . . . . . . 1 Special 1 | . . . . . . . . . . . . . . . . 1 . . Kinetic 334 | 16 27 10 . 1 48 106 . . 4 . 2 . . 7 3 21 14 75 Thermal 180 | . 27 16 . . 94 . . . . . 3 6 . . 1 14 8 11 Explosive 51 | . 17 10 7 . 16 . . . . . . . . . . . . 1 Electromagnetic 19 | . . . . . 17 . . . . . . 2 . . . . . . Robot Hit Streak 13 | 12 13 5 . . 11 10 . . . . 3 6 . 4 2 13 7 8 Robot Miss Streak 10 | 1 2 3 . 1 5 3 . . . . 5 10 . 1 2 2 2 4 Penetration Max 2 | . . . . . . 1 . . . . . . . 1 . . . 2 Secondary Targets 3 | . 2 . . . . 1 . . . . . . . . . . . . Max Gunslinging Chain 1 | . 1 . . . . 1 . . . . . . . . . . . . Shots Hit Robots 440 | 13 37 16 . . 143 77 . . . . 9 8 . 31 16 49 13 28 Core Hits 234 | 4 24 17 6 . 70 39 . . . . 8 11 . 12 7 12 8 16 Critical Kills 3 | . . . . . . . . . . . . . . . . . . 3 Critical Parts Destroyed 1 | . . . . . . . . . . . . . . . . . 1 . Critical Strikes 27 | . . . . . 7 2 . . . . . . . 4 1 9 1 3 Burn 5 | . . . . . 3 . . . . . . . . . . 2 . . Destroy 5 | . . . . . . . . . . . . . . . . 1 1 3 Blast 6 | . . . . . 1 2 . . . . . . . . . 3 . . Sever 3 | . . . . . 2 . . . . . . . . . . 1 . . Impale 8 | . . . . . 1 . . . . . . . . 4 1 2 . . Melee Attacks 152 | . . . . . 33 7 . . . . 10 3 . 51 19 29 . . Impact . | . . . . . . . . . . . . . . . . . . . Slashing 63 | . . . . . 11 7 . . . . 6 . . 25 . 14 . . Piercing 89 | . . . . . 22 . . . . . 4 3 . 26 19 15 . . Sneak Attacks 21 | . . . . . 9 . . . . . 1 . . 8 2 1 . . Combat Hostiles . | . . . . . . . . . . . . . . . . . . . Follow-up Attacks 7 | . . . . . 3 . . . . . 2 . . . . 2 . . Damage Inflicted 13664 | 115 951 554 251 . 4167 1860 . . . . 253 267 . 1381 546 1701 349 1269 Guns 4867 | 115 403 125 . . 1221 982 . . . . 54 118 . 160 64 235 349 1041 Cannons 2306 | . . . . . 952 717 . . . . . 56 . . . 581 . . Explosions 2472 | . 548 429 251 . 996 . . . . . . 58 . . . . . 190 Melee 3981 | . . . . . 998 161 . . . . 199 35 . 1221 482 885 . . Ramming 38 | . . . . . . . . . . . . . . . . . . 38 Kinetic 4568 | 115 146 21 . . 746 1699 . . . . 16 . . 160 31 581 209 844 Thermal 2428 | . 257 104 . . 1248 . . . . . 38 176 . . 33 235 140 197 Explosive 2414 | . 548 429 251 . 996 . . . . . . . . . . . . 190 Electromagnetic 235 | . . . . . 179 . . . . . . 56 . . . . . . Impact . | . . . . . . . . . . . . . . . . . . . Slashing 1416 | . . . . . 305 161 . . . . 167 . . 365 . 418 . . Piercing 2565 | . . . . . 693 . . . . . 32 35 . 856 482 467 . . Highest Corruption 12 | . . . . . . 2 . . . . 2 4 . . 11 12 . 9 Average Corruption 6 | . . . . . . 1 . . . . 1 2 . . 5 11 . 8 Corruption Purged 6 | . . . . . . 2 . . . . . 4 . . . . . . Corruption Blocked . | . . . . . . . . . . . . . . . . . . . Effects 89 | . . . . . . 12 . . . . 2 3 . . 10 50 . 12 Message Errors 22 | . . . . . . 2 . . . . . . . . 2 14 . 4 Matter Fused 14 | . . . . . . 3 . . . . . 1 . . 1 7 . 2 Heat Flow Errors 10 | . . . . . . 3 . . . . . 1 . . . 3 . 3 Energy Discharges 13 | . . . . . . 3 . . . . 1 1 . . 1 6 . 1 Parts Rejected 5 | . . . . . . . . . . . . . . . 1 4 . . Data Loss (minor) 11 | . . . . . . 1 . . . . . . . . 2 8 . . Data Loss (major) 3 | . . . . . . . . . . . . . . . 1 2 . . Misfires 1 | . . . . . . . . . . . . . . . . 1 . . Alerts 3 | . . . . . . . . . . . 1 . . . 1 . . 1 Misdirections 3 | . . . . . . . . . . . . . . . 1 2 . . Weapon Failures 4 | . . . . . . . . . . . . . . . . 3 . 1 Overload Shots . | . . . . . . . . . . . . . . . . . . . Overflow Damage 362 | . 14 2 21 . 129 . . . . . . 22 . 152 22 . . . Projectiles . | . . . . . . . . . . . . . . . . . . . Explosions 37 | . 14 2 21 . . . . . . . . . . . . . . . Melee 325 | . . . . . 129 . . . . . . 22 . 152 22 . . . Knockbacks 10 | . . . . . 2 6 . . . . . . . . . 2 . . Impact . | . . . . . . . . . . . . . . . . . . . Kinetic 10 | . . . . . 2 6 . . . . . . . . . 2 . . Secondary . | . . . . . . . . . . . . . . . . . . . Self-Inflicted Damage 421 | . 138 85 29 . 119 . . . . . . . . . . . . 50 Shots 13 | . 5 2 2 . 3 . . . . . . . . . . . . 1 Rammed 2 | . . . . . . . . . . . . . . . . . . 2 Targets Rammed 2 | . . . . . . . . . . . . . . . . . . 2 Kicked . | . . . . . . . . . . . . . . . . . . . Crushed . | . . . . . . . . . . . . . . . . . . . Highest Temperature 438 | . 256 56 . 5 308 225 11 58 150 92 97 154 . . 92 341 438 382 Average Temperature 64 | . 68 26 . 5 51 46 6 21 64 35 28 24 . . 25 104 164 111 Received Heat Transfer 3220 | . 153 135 . . 848 837 12 . . 12 192 27 15 . 69 682 . 238 Effects 15 | . . . . . . . . . . . . . . . . 7 4 4 Shutdowns 2 | . . . . . . . . . . . . . . . . . 1 1 Energy Bleed 3 | . . . . . . . . . . . . . . . . 2 . 1 Interference 10 | . . . . . . . . . . . . . . . . 5 3 2 Siege Activations . | . . . . . . . . . . . . . . . . . . . Robots Corrupted . | . . . . . . . . . . . . . . . . . . . Combat Hostiles . | . . . . . . . . . . . . . . . . . . . Parts Fried 1 | . . . . . 1 . . . . . . . . . . . . . Impact Corruptions . | . . . . . . . . . . . . . . . . . . . Robots Melted . | . . . . . . . . . . . . . . . . . . . Combat Hostiles . | . . . . . . . . . . . . . . . . . . . Parts Melted 5 | . 2 . . . 3 . . . . . . . . . . . . . Heat Transferred 4562 | . 605 225 . . 2590 . . . . . 30 150 . . 37 518 185 222 Parts Sabotaged 3 | . . . . . . . . . . . . . . . . . . 3 Parts Stolen . | . . . . . . . . . . . . . . . . . . . Parts Stripped . | . . . . . . . . . . . . . . . . . . . Power Chain Reactions 1 | . . . . . . . . . . . . 1 . . . . . . Alert | -11 -10 -10 -10 -9 -8 -7 -7 -7 -7 -6 -6 -6 -6 -5 -4 -4 -3 -3 ------- Run | Yrd Mat Min Exi Min Mat Fac Low Low Zio Pro Fac Low Low Fac Fac Ext Res Arm Peak Influence 643 | 15 444 388 . . 227 265 . . . . 133 . . 245 220 347 220 643 Initial 144 | . 9 115 . . . 58 . . . . 9 . . 93 46 107 144 115 Average 147 | 5 215 290 . . 131 138 . . . . 53 . . 134 60 225 173 203 Maximum Alert Level 2 | . 2 1 . . 1 1 . . . . . . . 1 1 1 1 2 Low Security (%) 72 | 100 30 12 . 100 85 83 . . . . 100 . . 76 98 41 62 58 Level 1 26 | . 66 87 . . 14 16 . . . . . . . 23 1 58 37 31 Level 2 1 | . 3 . . . . . . . . . . . . . . . . 10 Level 3 . | . . . . . . . . . . . . . . . . . . . Level 4 . | . . . . . . . . . . . . . . . . . . . Level 5 . | . . . . . . . . . . . . . . . . . . . High Security . | . . . . . . . . . . . . . . . . . . . Max Security . | . . . . . . . . . . . . . . . . . . . Squads Dispatched 36 | . 3 . . . 5 8 . . . . 4 . . 2 3 2 1 8 Investigation 5 | . 1 . . . 2 . . . . . . . . . . 1 . 1 Extermination 10 | . . . . . . 3 . . . . 1 . . 1 3 . . 2 Reinforcement 18 | . 2 . . . 3 2 . . . . 3 . . 1 . 1 1 5 Assault . | . . . . . . . . . . . . . . . . . . . Garrison 3 | . . . . . . 3 . . . . . . . . . . . . Intercept . | . . . . . . . . . . . . . . . . . . . Searches Triggered . | . . . . . . . . . . . . . . . . . . . Construction Impeded . | . . . . . . . . . . . . . . . . . . . Haulers Reinforced 1 | . . . . . . . . . . . . . . . . . 1 . Active Scanning Responses . | . . . . . . . . . . . . . . . . . . . Cargo Convoy Interrupts . | . . . . . . . . . . . . . . . . . . . Stealth | -11 -10 -10 -10 -9 -8 -7 -7 -7 -7 -6 -6 -6 -6 -5 -4 -4 -3 -3 --------- Run | Yrd Mat Min Exi Min Mat Fac Low Low Zio Pro Fac Low Low Fac Fac Ext Res Arm Distress Signals 12 | . 2 . . . 2 . . . . . 1 . . 1 . 3 . 3 Communications Jammed 43 | . . . . . . . . . . . . . . . 8 13 . 22 Distress Signals 42 | . . . . . . . . . . . . . . . 7 13 . 22 Times Spotted 331 | . 22 9 . . 44 27 4 . . 5 27 13 18 18 25 42 4 73 Peak Tracking Total 17 | . 6 3 . . 5 8 4 . . 5 9 8 6 5 17 8 2 17 Tactical Retreats 60 | . 2 . . . 3 3 2 . . 4 5 5 6 4 4 12 . 10 Traps | -11 -10 -10 -10 -9 -8 -7 -7 -7 -7 -6 -6 -6 -6 -5 -4 -4 -3 -3 ------- Run | Yrd Mat Min Exi Min Mat Fac Low Low Zio Pro Fac Low Low Fac Fac Ext Res Arm Traps Triggered 7 | . 1 . . . 1 . . . . . 1 . . 1 1 1 . 1 Indirectly . | . . . . . . . . . . . . . . . . . . . Trap Hack Attempts . | . . . . . . . . . . . . . . . . . . . Triggered . | . . . . . . . . . . . . . . . . . . . Disarmed . | . . . . . . . . . . . . . . . . . . . Reprogrammed . | . . . . . . . . . . . . . . . . . . . Reused . | . . . . . . . . . . . . . . . . . . . Traps Extracted . | . . . . . . . . . . . . . . . . . . . Installed . | . . . . . . . . . . . . . . . . . . . Triggered 1 | . . . . . . . . . . . . . . . . 1 . . Machines | -11 -10 -10 -10 -9 -8 -7 -7 -7 -7 -6 -6 -6 -6 -5 -4 -4 -3 -3 ---------- Run | Yrd Mat Min Exi Min Mat Fac Low Low Zio Pro Fac Low Low Fac Fac Ext Res Arm Machines Disabled 18 | . 3 1 1 . 4 . . . . . . . . . . 1 . 8 Max in Single Turn 2 | . 2 1 1 . 2 . . . . . . . . . . 1 . 1 Garrison Access 1 | . . . . . . . . . . . 1 . . . . . . . Machines Repaired . | . . . . . . . . . . . . . . . . . . . Machines Dismantled . | . . . . . . . . . . . . . . . . . . . Machines Sabotaged . | . . . . . . . . . . . . . . . . . . . Overloaded Fab Kills . | . . . . . . . . . . . . . . . . . . . Hacking | -11 -10 -10 -10 -9 -8 -7 -7 -7 -7 -6 -6 -6 -6 -5 -4 -4 -3 -3 --------- Run | Yrd Mat Min Exi Min Mat Fac Low Low Zio Pro Fac Low Low Fac Fac Ext Res Arm Machines Accessed 70 | . 5 . 4 1 6 8 . 2 . . 8 . 1 8 5 9 1 12 Terminals 42 | . 5 . . . 5 3 . . . . 6 . . 3 4 9 . 7 Fabricators 7 | . . . . . . 2 . . . . 1 . . 1 . . . 3 Repair Stations 4 | . . . . . . 1 . . . . . . . 2 . . . 1 Recycling Units 4 | . . . . . 1 . . . . . . . . . 1 . 1 1 Scanalyzers 2 | . . . . . . 1 . . . . . . . 1 . . . . Garrison Access 3 | . . . . . . 1 . . . . 1 . . 1 . . . . Total Hacks 212 | . 16 . 49 1 17 16 . 2 . . 14 . 6 18 22 20 5 26 Successful 122 | . 7 . 49 1 10 5 . 2 . . 7 . 6 10 11 8 1 5 Failed 90 | . 9 . . . 7 11 . . . . 7 . . 8 11 12 4 21 Catastrophic 19 | . 1 . . . 2 5 . . . . . . . 3 3 1 . 4 Database Lockouts . | . . . . . . . . . . . . . . . . . . . Manual 53 | . 10 . 1 . 5 3 . . . . 7 . . 3 15 7 . 2 Terminals 111 | . 16 . . . 16 7 . . . . 11 . . 5 19 20 . 17 Fabricators 13 | . . . . . . 3 . . . . 2 . . 2 . . . 6 Repair Stations 12 | . . . . . . 2 . . . . . . . 8 . . . 2 Recycling Units 10 | . . . . . 1 . . . . . . . . . 3 . 5 1 Scanalyzers 3 | . . . . . . 1 . . . . . . . 2 . . . . Garrison Access 5 | . . . . . . 3 . . . . 1 . . 1 . . . . Terminal Hacks 96 | . 5 . 49 1 7 2 . 2 . . 3 . 6 2 8 7 . 4 Record 55 | . . . 49 . . . . . . . . . 6 . . . . . Part Schematic 1 | . . . . . . 1 . . . . . . . . . . . . Robot Analysis 1 | . 1 . . . . . . . . . . . . . . . . . Prototype ID Bank 1 | . . . . . 1 . . . . . . . . . . . . . Open Door 9 | . . . . 1 . . . 2 . . . . . . . 5 . 1 Open DSF 2 | . . . . . . . . . . . 1 . . . 1 . . . Branch Access Points 1 | . . . . . . . . . . . . . . . 1 . . . Emergency Access Points 1 | . . . . . . . . . . . . . . . 1 . . . Terminal Index 2 | . 1 . . . 1 . . . . . . . . . . . . . Alert Level 2 | . 1 . . . 1 . . . . . . . . . . . . . Unreport Threat 4 | . . . . . 1 . . . . . . . . . 2 1 . . Locate Traps 10 | . 1 . . . 1 1 . . . . 2 . . 2 1 . . 2 Recall Investigation 1 | . . . . . . . . . . . . . . . 1 . . . Recall Reinforcements 2 | . 1 . . . . . . . . . . . . . . 1 . . Hauler Manifests 2 | . . . . . 1 . . . . . . . . . . . . 1 Registered Components 1 | . . . . . 1 . . . . . . . . . . . . . Zone Layout 1 | . . . . . . . . . . . . . . . 1 . . . Fabricator Hacks 5 | . . . . . . 2 . . . . 2 . . 1 . . . . Load Schematic 2 | . . . . . . . . . . . 1 . . 1 . . . . Build 3 | . . . . . . 2 . . . . 1 . . . . . . . Repair Station Hacks 6 | . . . . . . . . . . . . . . 5 . . . 1 Scan Component 4 | . . . . . . . . . . . . . . 3 . . . 1 Repair 2 | . . . . . . . . . . . . . . 2 . . . . Recycling Unit Hacks 3 | . . . . . 1 . . . . . . . . . 1 . 1 . Report Inventory 2 | . . . . . 1 . . . . . . . . . . . 1 . Retrieve Components 1 | . . . . . . . . . . . . . . . 1 . . . Scanalyzer 2 | . . . . . . . . . . . . . . 2 . . . . Insert Component 1 | . . . . . . . . . . . . . . 1 . . . . Analyze 1 | . . . . . . . . . . . . . . 1 . . . . Garrison Access Hacks 1 | . . . . . . . . . . . 1 . . . . . . . Seal Access 1 | . . . . . . . . . . . 1 . . . . . . . Unauthorized Hacks 9 | . 2 . . . 2 1 . . . . 1 . . . 2 1 . . Terminals 9 | . 2 . . . 2 1 . . . . 1 . . . 2 1 . . Botnet 8 | . 2 . . . 1 1 . . . . 1 . . . 2 1 . . Operators 1 | . . . . . 1 . . . . . . . . . . . . . Fabricators . | . . . . . . . . . . . . . . . . . . . Repair Stations . | . . . . . . . . . . . . . . . . . . . Recycling Units . | . . . . . . . . . . . . . . . . . . . Scanalyzers . | . . . . . . . . . . . . . . . . . . . Garrison Access . | . . . . . . . . . . . . . . . . . . . Data Cores Recovered 1 | . . . . . . . . . . . 1 . . . . . . . Used . | . . . . . . . . . . . . . . . . . . . Hacking Detections 50 | . 5 . . . 5 7 . . . . 5 . . 6 4 5 1 12 Full Trace Events 3 | . 1 . . . . . . . . . . . . . . 1 . 1 Feedback Events . | . . . . . . . . . . . . . . . . . . . Feedback Blocked . | . . . . . . . . . . . . . . . . . . . Robot Schematics Acquired 4 | . . . . . . . . . 4 . . . . . . . . . Robots Built 4 | . . . . . . 1 . . . . 3 . . . . . . . Authchips 1 | . . . . . . . . . . . 1 . . . . . . . Time 84 | . . . . . . 40 . . . . 44 . . . . . . . Total Robot Build Rating 13 | . . . . . . 1 . . . . 12 . . . . . . . Part Schematics Acquired 16 | . . . . . . 1 . . 14 . . . . 1 . . . . Parts Built 2 | . . . . . . 2 . . . . . . . . . . . . Authchips . | . . . . . . . . . . . . . . . . . . . Time 31 | . . . . . . 31 . . . . . . . . . . . . Total Part Build Rating 10 | . . . . . . 10 . . . . . . . . . . . . Parts Repaired 2 | . . . . . . . . . . . . . . 2 . . . . Time 106 | . . . . . . . . . . . . . . 106 . . . . Parts Recycled . | . . . . . . . . . . . . . . . . . . . Recycled Matter . | . . . . . . . . . . . . . . . . . . . Retrieved Matter . | . . . . . . . . . . . . . . . . . . . Retrieved Components 10 | . . . . . . . . . . . . . . . 10 . . . Parts Scanalyzed 1 | . . . . . . . . . . . . . . 1 . . . . Part Schematics Acquired 1 | . . . . . . . . . . . . . . 1 . . . . Parts Damaged . | . . . . . . . . . . . . . . . . . . . Bothacking | -11 -10 -10 -10 -9 -8 -7 -7 -7 -7 -6 -6 -6 -6 -5 -4 -4 -3 -3 ------------ Run | Yrd Mat Min Exi Min Mat Fac Low Low Zio Pro Fac Low Low Fac Fac Ext Res Arm Used RIF Installer . | . . . . . . . . . . . . . . . . . . . Robots Hacked . | . . . . . . . . . . . . . . . . . . . Non-combat . | . . . . . . . . . . . . . . . . . . . Combat . | . . . . . . . . . . . . . . . . . . . Robot Hacks Applied . | . . . . . . . . . . . . . . . . . . . Relay Couplers Released 3 | . . . . . . . . . . . 3 . . . . . . . Machine Destruction 3 | . . . . . . . . . . . 3 . . . . . . . Fabnet Peak Effective % . | . . . . . . . . . . . . . . . . . . . Robots Rewired 22 | . . . 3 . . . . . . . . . . . . 12 . 7 Allies Hacked 2 | . . . . . . . . . . . . . . . . . . 2 Hacks Repelled . | . . . . . . . . . . . . . . . . . . . Allies | -11 -10 -10 -10 -9 -8 -7 -7 -7 -7 -6 -6 -6 -6 -5 -4 -4 -3 -3 -------- Run | Yrd Mat Min Exi Min Mat Fac Low Low Zio Pro Fac Low Low Fac Fac Ext Res Arm Total Allies 39 | . . . 3 . . 1 . . . . 3 . . . . 16 . 16 Largest Group 10 | . . . 3 3 3 1 . . . . 3 . . . . 6 . 10 Highest-Rated Group 481 | . . . 37 37 37 12 . . . . 60 . . . . 371 . 481 Highest-Rated Ally 159 | . . . 21 21 21 12 . . . . 20 . . . . 159 . 58 Total Orders 6 | . . . . . 4 2 . . . . . . . . . . . . ROAM 1 | . . . . . 1 . . . . . . . . . . . . . DROP 1 | . . . . . . 1 . . . . . . . . . . . . PICKUP 1 | . . . . . . 1 . . . . . . . . . . . . EXPLORE 2 | . . . . . 2 . . . . . . . . . . . . . RETURN 1 | . . . . . 1 . . . . . . . . . . . . . Ally Attacks 195 | . . . . . . . . . . . 1 . . . . 113 . 81 Total Damage 5551 | . . . . . . . . . . . 31 . . . . 2850 . 2670 Kills 40 | . . . . . . . . . . . . . . . . 21 . 19 Allies Corrupted 5 | . . . . . . . . . . . . . . . . 2 . 3 Allies Melted 2 | . . . . . . . . . . . 1 . . . . 1 . . Intel | -11 -10 -10 -10 -9 -8 -7 -7 -7 -7 -6 -6 -6 -6 -5 -4 -4 -3 -3 ------- Run | Yrd Mat Min Exi Min Mat Fac Low Low Zio Pro Fac Low Low Fac Fac Ext Res Arm Robot Analysis Total 1 | . 1 . . . . . . . . . . . . . . . . . Derelict Logs Recovered 9 | . . 1 . . . . 1 2 1 1 . 1 2 . . . . . Drone Launches 11 | . . . . . 11 . . . . . . . . . . . . . Drone Recoveries 10 | . . . . . 10 . . . . . . . . . . . . . Exploration | -11 -10 -10 -10 -9 -8 -7 -7 -7 -7 -6 -6 -6 -6 -5 -4 -4 -3 -3 ------------- Run | Yrd Mat Min Exi Min Mat Fac Low Low Zio Pro Fac Low Low Fac Fac Ext Res Arm Turns Passed 12779 | 119 686 331 1025 405 2704 1234 180 187 279 235 477 348 402 873 780 1152 342 1020 Spaces Moved 12745 | 59 481 234 675 311 873 768 643 480 959 642 752 640 557 937 1331 1232 257 914 Core 182 | 23 . . . . 1 1 . . . . . 100 . . . 3 . 54 Treads 8 | . . . . . 8 . . . . . . . . . . . . . Legs 489 | . . . . . 261 . . . . . . . . 11 . 169 48 . Wheels 2899 | 36 481 234 675 311 603 427 . . . . 3 . . . . . 129 . Hover 1082 | . . . . . . . . . . . . 17 . . . 334 80 651 Flight 8085 | . . . . . . 340 643 480 959 642 749 523 557 926 1331 726 . 209 Fastest Speed 5 | 50 90 105 145 110 155 26 26 26 26 26 23 35 35 22 5 22 73 20 Average Speed 69 | 120 104 112 145 121 240 117 26 27 26 26 26 39 52 49 33 49 103 48 Slowest Speed 2600 | 200 140 145 145 145 2600 2500 26 96 26 26 115 350 115 120 99 400 260 400 Overloaded Moves 49 | . . . . . . . . . . . . . . . 30 19 . . Propulsion Burnouts . | . . . . . . . . . . . . . . . . . . . Robots Hopped 56 | . . . . . . . . . . 1 7 2 3 . 15 14 . 14 Cave-ins Triggered . | . . . . . . . . . . . . . . . . . . . Exploration Rate (%) 53 | 4 79 60 92 58 64 17 75 53 84 86 15 74 66 29 28 55 6 66 Regions Visited 18 Branch Regions 11 Pre-discovered Areas 5 | . . . 1 1 . . . . 3 . . . . . . . . . Known Exits Taken 9 | . 1 1 1 . . . . . . 1 . . 1 1 1 1 1 . Unknown Exits Taken 9 | 1 . . . 1 1 1 1 1 1 . 1 1 . . . . . . Scrap Searched 17 | . . 1 . 1 . . 2 4 3 1 . 2 3 . . . . . Spaces Dug 10 | . 10 . . . . . . . . . . . . . . . . . Terrain Destroyed 430 | . 116 72 60 . 155 8 . . . . . 6 . 1 1 3 2 6 Melee . | . . . . . . . . . . . . . . . . . . . Projectile 23 | . . . . . 8 8 . . . . . . . 1 1 3 1 1 AOE 406 | . 116 72 60 . 147 . . . . . . 6 . . . . . 5 Terrain Rammed . | . . . . . . . . . . . . . . . . . . . Walls Destroyed . | . . . . . . . . . . . . . . . . . . . Machines Disabled . | . . . . . . . . . . . . . . . . . . . Actions | -11 -10 -10 -10 -9 -8 -7 -7 -7 -7 -6 -6 -6 -6 -5 -4 -4 -3 -3 --------- Run | Yrd Mat Min Exi Min Mat Fac Low Low Zio Pro Fac Low Low Fac Fac Ext Res Arm Total 15883 | 90 596 268 719 339 1280 1020 655 540 986 708 1006 718 657 1277 1629 1689 314 1392 Wait 1645 | 10 28 . 1 14 70 99 11 37 11 68 213 51 87 222 216 210 17 280 Move 12626 | 58 480 233 674 310 872 767 642 479 958 639 738 636 550 936 1301 1206 256 891 Hop 45 | . . . . . . . . . . 1 6 1 3 . 14 11 . 9 Pick Up 156 | 5 19 3 8 4 45 13 1 5 2 . 8 1 2 10 14 8 2 6 Fast Attach 206 | 8 1 . . 1 31 13 . 2 5 . 10 8 10 30 16 27 14 30 Attach 77 | . 4 3 1 1 20 13 . 2 . . 10 4 1 2 2 7 1 6 Detach 47 | 1 1 . . 1 11 2 . 4 . . 3 5 1 2 2 7 2 5 Swap 111 | . 14 6 1 2 23 12 . 3 1 . 3 . . 2 14 9 5 16 Drop 210 | . 8 3 7 5 41 25 1 8 7 . 3 1 3 15 27 23 10 23 Fire 392 | 8 41 20 7 1 136 69 . . 2 . 4 8 . 7 4 24 7 54 Melee 145 | . . . . . 30 7 . . . . 8 3 . 51 19 27 . . Ram 2 | . . . . . . . . . . . . . . . . . . 2 Kick . | . . . . . . . . . . . . . . . . . . . Crush . | . . . . . . . . . . . . . . . . . . . Escape Stasis 11 | . . . . . . . . . . . . . . . . 11 . . Rewire 209 | . . . 20 . . . . . . . . . . . . 119 . 70 Trap . | . . . . . . . . . . . . . . . . . . . Miscellaneous 1 | . . . . . 1 . . . . . . . . . . . . . Route ------- -11/Scrapyard -10/Materials (discovered 2 exits: [*Mat] / *Min) -10/Mines (discovered 2 exits: [*Mat] / *Exi) -10/Exiles -9/Mines -8/Materials -7/Factory -7/Lower Caves -7/Lower Caves -7/Zion -6/Proximity Caves -6/Factory (discovered 2 exits: Fac / [*Low]) -6/Lower Caves -6/Lower Caves -5/Factory (discovered 2 exits: *Fac / Upp) -4/Factory (discovered 5 exits: Res / Upp x2 / *Ext x2) -4/Extension -3/Research -3/Armory History --------- Turn | Location | Event 11 | -11/Scrapyard | Discovered new exit (range 15) 120 | -11/Scrapyard | Entered Materials 318 | -10/Materials | Build established: Mutant 542 | -10/Materials | Discovered new exit (range 11) 665 | -10/Materials | Core integrity fell below 50% 753 | -10/Materials | Discovered new exit (range 16) 805 | -10/Materials | Identified exit to Mines 806 | -10/Materials | Entered Mines 825 | -10/Mines | Identified exit to Exiles 826 | -10/Mines | Discovered new exit (range 13) 868 | -10/Mines | Received a Rocket Launcher from a helpful Derelict 1065 | -10/Mines | Core integrity fell below 20% 1095 | -10/Mines | Lost 3 parts (1n2w) 1129 | -10/Mines | Deemed a non-threat by the Exiles lab entrance 1137 | -10/Mines | Entered Exiles 1137 | -10/Exiles | Found Exiles lab destroyed 1577 | -10/Exiles | Learned location of Zion (-7) 1684 | -10/Exiles | Discovered new exit (range 11) 1709 | -10/Exiles | Identified exit to Mines 2162 | -10/Exiles | Entered Mines 2162 | -9/Mines | Accompanied by 3 allies 2163 | -9/Mines | Learned location of Storage (-8) 2201 | -9/Mines | Met a Derelict bent on vengeance 2282 | -9/Mines | Found the Drone Emporium 2291 | -9/Mines | Found Prototype Device 2363 | -9/Mines | Assembled infested the area 2548 | -9/Mines | Discovered new exit (range 5) 2567 | -9/Mines | Entered Materials 2567 | -8/Materials | Accompanied by 3 allies 2567 | -8/Materials | Evolved 4 slots: Propulsion x1, Utility x3 2567 | -8/Materials | Identified Sensor Drone Bay 2722 | -8/Materials | Lost 5 parts (1p1n2u1w) 2857 | -8/Materials | Build established: Hauler-Mutant 3251 | -8/Materials | Lost 6 parts (2p3n1u) 3411 | -8/Materials | Lost 5 parts (1n2u2w) 3419 | -8/Materials | Core integrity fell below 50% 3537 | -8/Materials | Lost 3 parts (1p1n1w) 5136 | -8/Materials | Discovered new exit (range 20) 5271 | -8/Materials | Entered Factory 5271 | -7/Factory | Evolved 2 slots: Power x1, Propulsion x1 5468 | -7/Factory | Lost 4 parts (2p2n) 5628 | -7/Factory | Garrison activated, responded to threat 5827 | -7/Factory | Fabricated Nuclear Pulse Thruster (x2) 6110 | -7/Factory | Lost 3 parts (2p1w) 6125 | -7/Factory | Core integrity fell below 50% 6161 | -7/Factory | Lost 5 parts (3n1u1w) 6172 | -7/Factory | Core integrity fell below 20% 6282 | -7/Factory | Discovered new exit (range 15) 6339 | -7/Factory | Fabricated A-02 Transporter (x1) 6505 | -7/Factory | Entered Lower Caves 6547 | -7/Lower Caves | Encountered a Warlord checkpoint 6599 | -7/Lower Caves | Discovered new exit (range 9) 6612 | -7/Lower Caves | Learned location of 1 exit from Proximity Caves 6685 | -7/Lower Caves | Entered another Lower Caves area 6749 | -7/Lower Caves | Learned location of 1 exit from Factory 6764 | -7/Lower Caves | Learned Factory machine intel 6775 | -7/Lower Caves | Build established: Sprinter 6783 | -7/Lower Caves | Found Prototype Device 6783 | -7/Lower Caves | Identified Heart of Steel 6856 | -7/Lower Caves | Discovered new exit (range 7) 6872 | -7/Lower Caves | Entered Zion 7008 | -7/Zion | Learned location of Warlord (-4) 7098 | -7/Zion | Found CR-A16's Pointy Stick 7136 | -7/Zion | Learned location of Quarantine (-3) 7143 | -7/Zion | Received a visual enhancement algorithm 7146 | -7/Zion | Discovered new exit (range 16) 7151 | -7/Zion | Entered Proximity Caves 7152 | -6/Proximity Caves | Identified exit to Factory 7158 | -6/Proximity Caves | Learned 4 Factory zone layouts 7223 | -6/Proximity Caves | Build established: Derelict-Sprinter 7327 | -6/Proximity Caves | Attracted the attention of an 0b10 checkpoint 7332 | -6/Proximity Caves | Spotted B-75 Beast 7386 | -6/Proximity Caves | Entered Factory 7386 | -6/Factory | Evolved 2 slots: Propulsion x1, Utility x1 7387 | -6/Factory | Identified exit to Factory 7389 | -6/Factory | Loaded intel: 244 machine locations 7727 | -6/Factory | Spotted B-75 Beast 7739 | -6/Factory | Fabricated B-48 Gladiator? 7766 | -6/Factory | Lost 8 parts (3p1n2u2w) 7794 | -6/Factory | Revealed the true nature of CR-A16's Pointy Stick 7798 | -6/Factory | Destroyed B-75 Beast 7832 | -6/Factory | Lost 10 parts (1p5n3u1w) 7842 | -6/Factory | Core integrity fell below 50% 7859 | -6/Factory | Discovered new exit (range 13) 7863 | -6/Factory | Entered Lower Caves 7909 | -6/Lower Caves | Core integrity fell below 20% 7924 | -6/Lower Caves | Lost 10 parts (1p3n3u3w) 7929 | -6/Lower Caves | Learned 4 Factory zone layouts 8016 | -6/Lower Caves | Encountered a Warlord checkpoint 8073 | -6/Lower Caves | Attracted the attention of an 0b10 outpost 8206 | -6/Lower Caves | Discovered new exit (range 15) 8211 | -6/Lower Caves | Entered another Lower Caves area 8267 | -6/Lower Caves | Encountered a Warlord checkpoint 8292 | -6/Lower Caves | Learned Factory terminal intel 8293 | -6/Lower Caves | Attracted the attention of an 0b10 checkpoint 8357 | -6/Lower Caves | Build established: Mutant 8409 | -6/Lower Caves | Learned 8 Research zone layouts 8409 | -6/Lower Caves | Learned Armory trap positions 8409 | -6/Lower Caves | Learned Research emergency access door positions 8606 | -6/Lower Caves | Discovered exit to Factory (range 7) 8613 | -6/Lower Caves | Entered Factory 8613 | -5/Factory | Evolved 2 slots: Propulsion x1, Utility x1 8614 | -5/Factory | Identified exit to Upper Caves 8616 | -5/Factory | Loaded intel: 26 terminal locations 8895 | -5/Factory | Build established: Derelict-Mutant 9069 | -5/Factory | Lost 11 parts (6n3u2w) 9300 | -5/Factory | Repaired Mic. Fission Core 9351 | -5/Factory | Repaired Imp. Cryofiber Web 9378 | -5/Factory | Discovered new exit (range 15) 9485 | -5/Factory | Identified exit to Factory 9486 | -5/Factory | Entered another Factory area 9486 | -4/Factory | Evolved 2 slots: Propulsion x1, Utility x1 9487 | -4/Factory | Identified exit to Research 10146 | -4/Factory | Identified exit to Upper Caves 10146 | -4/Factory | Identified exit to Extension 10153 | -4/Factory | System corruption reached 10% 10183 | -4/Factory | Lost 5 parts (1p1n2u1w) 10266 | -4/Factory | Entered Extension 10336 | -4/Extension | Rescued A7 10351 | -4/Extension | Spotted B-86 Titan 10513 | -4/Extension | Rescued a captive Derelict 10535 | -4/Extension | Lost 3 allies 10591 | -4/Extension | Disrupted transfer network 10670 | -4/Extension | Lost 6 parts (1p2n2u1w) 10707 | -4/Extension | Lost 3 allies 10749 | -4/Extension | Rescued a captive Derelict 10754 | -4/Extension | Rescued a captive Derelict 10904 | -4/Extension | Lost 3 allies 11089 | -4/Extension | Extracted ID and sensor layout for unrecognized location from A7's data core 11104 | -4/Extension | Core integrity fell below 50% 11123 | -4/Extension | Lost 4 allies 11145 | -4/Extension | Lost 5 parts (1p1n3u) 11411 | -4/Extension | Spotted B-86 Titan 11414 | -4/Extension | Build established: Scavenger-Mutant 11417 | -4/Extension | Discovered exit to Research (range 3) 11418 | -4/Extension | Entered Research 11418 | -3/Research | Evolved 2 slots: Weapon x2 11449 | -3/Research | Lost 4 parts (1p3n) 11744 | -3/Research | Discovered new exit (range 6) 11747 | -3/Research | Identified exit to Armory 11756 | -3/Research | Build established: Scavenger-Gunner 11760 | -3/Research | Entered Armory 11761 | -3/Armory | Loaded intel: 53 trap records 11980 | -3/Armory | Found Gamma Bomb Array 12560 | -3/Armory | Core integrity fell below 50% 12584 | -3/Armory | Core integrity fell below 20% 12603 | -3/Armory | Assisted by bots powering up and referring to "LRC-V3" 12618 | -3/Armory | Lost 20 parts (3p5n7u5w) 12712 | -3/Armory | Lost 5 allies 12734 | -3/Armory | Spotted B-86 Titan 12775 | -3/Armory | Spotted Armor Guard 12775 | -3/Armory | Spotted Armor Guard 12777 | -3/Armory | Spotted Armor Guard 12777 | -3/Armory | Spotted Armor Guard 12780 | -3/Armory | Destroyed by Armor Guard with Advanced Plasma Rifle Last Messages --------------- 12743_ Xenon Bombardment Thruster destroyed. 12743_ Adv. Melee Analysis Suite destroyed. 12743_ Xenon Bombardment Thruster destroyed. 12744_ Dropped Carbide Saw. 12745_ Dropped Imp. Matter Compressor. 12746_ Extracted 20 matter. 12763_ Lgt. Antimatter Reactor destroyed. 12763_ Imp. Surge Thruster destroyed. 12765_ Slug penetrates Wall. 12765_ Slug penetrates G-67 Veteran. 12766_ Transfer Shaft disabled. 12767_ The unstable cave ceiling collapses. 12773_ Transfer Shaft disabled. 12775_ Connecting with Door Terminal... >>Open(Door) Sealed Blast Doors opened. 12776_ Slug penetrates Wall. 12778_ Xenon Bombardment Thruster destroyed. 12778_ Penetrated by Slug. 12778_ Slug penetrates Wall. Map ----- +----------------------------------------------------+ | | | | | | | | | | | | | | | | | | | | | | | | | | | | | | | | | ?????????????????????????????????????????????????? | | ?????????????????????????????????????????????????? | | ?????????????????????????????????????????????????? | | ??????????????????#??????????????????????????????? | | ??????????????????""???####??????????????????????? | | ???????????????^????"###YY#??????????????????????? | | ?????????????????????^ w #??????????????????????? | | ??????????????^???????^ #??????????????????????? | | ???????????????????????#^^#??????????????????????? | | ######???????^???^?????# @#??????????????????????? | | """T""" #??????????????# #??????????????????????? | | """ """ #??????????????# #??????????????????????? | | #??????????????# #??????????????????????? | | #?????^^???????# #??????????????????????? | | """ #??????????????# #??????????????????????? | | """ #??????????????# #??????????????????????? | | """ #?????########## #??????????????????????? | | #?????# ^ #??????????????????????? | | ## +##???????# ^ #??????????????????????? | | #????????##^^^^"######??????????????????????? | | #?????????# ##???????????????????????????? | | ##????????# T#???????????????????????????? | | "########## ##?#########?????????????????? | | # ??????????????????? | | / """ ""?????????????????????? | | "" " """ """ # """ ""?????????????????????? | | " """ """ """ #??"" "??????????????????????? | | "" "" " "" #???? ??????????????????????? | | #????????????????????????????? | | #????????????????????????????? | | ]]] """ """ #????????????????????????????? | | ]] """ """ ###??????????????????????????? | | ]] "" """ #??????????????????????????? | | #??????????????????????????? | +----------------------------------------------------+ Best States ------------- Heat Dissipation 77 Energy Generation 45 Energy Capacity 515 Matter Stores 300 Matter Capacity 300 Sight Range 20 Robot Scan Range 19 Terrain Scan Range 16 Terrain Scan Density 10 ECM Strength 2 Jamming Range 16 Additional Mass Support 16 Base Temperature (-) 200 Armor Coverage 225 Resistance: KI 20 Resistance: TH 25 Weapon Shielding 66 Phase Shifting 15 Evasion (%) 75 Targeting Accuracy 8 Melee Accuracy 16 Target Analysis 8 Recoil Reduction 1 Matter Filtering 50 Kinecelleration 40 Offensive Hacking 14 Defensive Hacking 20 Authchip Count 1 Item Schematics ----------------- Field Propulsion Drive | -7/Factory | Hacked Coolant Injector | -7/Zion | Archive Fission Core | -7/Zion | Archive Adv. Terrain Scan Processor | -7/Zion | Archive Hvy. Flak Cannon | -7/Zion | Archive Med. Reactive Plating | -7/Zion | Archive Imp. System Shield | -7/Zion | Archive Gatling Laser | -7/Zion | Archive Lrn. Proton Cannon | -7/Zion | Archive Imp. Deuterium Engine | -7/Zion | Archive Hpw. Shock Rifle | -7/Zion | Archive Arm. Huge Wheel | -7/Zion | Archive Fusion Compressor | -7/Zion | Archive Adv. Signal Interpreter | -7/Zion | Archive Imp. Field Recycling Unit | -7/Zion | Archive CPS Tube | -5/Factory | Scanalyzed Robot Schematics ------------------ Y-54 Guardian | -7/Zion | Archive B-48 Gladiator | -7/Zion | Archive S-27 Virus | -7/Zion | Archive H-77 Assassin | -7/Zion | Archive Fabricated ------------ Nuclear Pulse Thruster | x2 | -7/Factory | Preloaded A-02 Transporter | x1 | -7/Factory | Preloaded B-48 Gladiator | x3 | -6/Factory | Authchip Alien Tech Used ----------------- None Achievements -------------- Explorer No Signal Ooh, Shiny! Prison Break Prolific Hacker Rockin' Loadout Challenges ------------ None Game ------ Seed SeismicAlertShovel Manual? 0 Play Time 04:09:56 Cumulative 187.7 hours Start 2024.09.03 @ 21:10:13 End 2024.09.07 @ 16:06:39 Sessions 9 Manual Loads 0 Difficulty Rogue Special Mode None Game No. 190 Rogue 190 Adventurer 0 Explorer 0 Win Type - Total 0 Types 0/0/0/0/0/0/0/0/0 Lore% 20 Gallery% 57 Achievement% 42 Wizard Run 0 Options --------- Layout 0 ASCII 0 Keyboard 1 Movement Vi Keybinds 0 Fullscreen 1 Font 24/Smallcaps Map View 76x50 Zoom Use 0% Tactical HUD 1 Map Filters NONE Filters NONE Steam 1 RUN: d6f248d3-d27a-48cd-be0f-bcb97447ea4d